[Event "Kwalificatie NJK A Groningen"]
[Site "Hoogkerk, Netherlands"]
[Date "2023.02.19"]
[Round "5.5"]
[White "Venema, Katja"]
[Black "Den Heijer, Rolinde"]
[Result "0-1"]
[TimeControl "55 min. + 10 sec./zet"]
[WhiteElo "1683"]
[BlackElo "1831"]

1. d4 {[%clk 00:55:17]} {[%emt 00:00:02]} d5 {[%clk 00:55:17]} {[%emt
00:00:04]} 2. c4 {[%clk 00:55:18]} {[%emt 00:00:08]} e6 {[%clk 00:55:23]}
{[%emt 00:00:04]} 3. Nf3 {[%clk 00:55:21]} {[%emt 00:00:07]} c5 {[%clk
00:55:27]} {[%emt 00:00:06]} 4. cxd5 {[%clk 00:55:22]} {[%emt 00:00:09]} exd5
{[%clk 00:55:32]} {[%emt 00:00:06]} 5. Bg5 {[%clk 00:54:55]} {[%emt 00:00:36]}
Nf6 {[%clk 00:54:40]} {[%emt 00:01:02]} 6. Nc3 {[%clk 00:54:24]} {[%emt
00:00:42]} Be6 {[%clk 00:54:37]} {[%emt 00:00:13]} 7. g3 {[%clk 00:53:18]}
{[%emt 00:01:15]} c4 {[%clk 00:49:30]} {[%emt 00:05:18]} 8. Bg2 {[%clk
00:52:34]} {[%emt 00:00:53]} Nc6 {[%clk 00:47:57]} {[%emt 00:01:43]} 9. Ne5
{[%clk 00:49:52]} {[%emt 00:02:52]} Be7 {[%clk 00:44:38]} {[%emt 00:03:29]} 10.
O-O {[%clk 00:46:54]} {[%emt 00:03:09]} O-O {[%clk 00:43:40]} {[%emt 00:01:08]}
11. Bf4 {[%clk 00:43:01]} {[%emt 00:04:03]} Re8 {[%clk 00:37:18]} {[%emt
00:06:31]} 12. Nb5 {[%clk 00:39:26]} {[%emt 00:03:45]} Nh5 {[%clk 00:33:31]}
{[%emt 00:03:57]} 13. Be3 {[%clk 00:37:24]} {[%emt 00:02:12]} Qa5 {[%clk
00:29:52]} {[%emt 00:03:50]} 14. Nc3 {[%clk 00:35:50]} {[%emt 00:01:44]} Rad8
{[%clk 00:28:48]} {[%emt 00:01:13]} 15. Nxc6 {[%clk 00:33:01]} {[%emt
00:03:00]} bxc6 {[%clk 00:28:47]} {[%emt 00:00:11]} 16. Bd2 {[%clk 00:31:43]}
{[%emt 00:01:28]} Qc7 {[%clk 00:27:18]} {[%emt 00:01:38]} 17. e4 {[%clk
00:30:48]} {[%emt 00:01:06]} g6 {[%clk 00:24:44]} {[%emt 00:02:44]} 18. exd5
{[%clk 00:26:42]} {[%emt 00:04:16]} cxd5 {[%clk 00:24:36]} {[%emt 00:00:18]} 19.
Qa4 {[%clk 00:25:31]} {[%emt 00:01:21]} Nf6 {[%clk 00:20:37]} {[%emt 00:04:09]}
20. Rfe1 {[%clk 00:20:05]} {[%emt 00:05:36]} Qb6 {[%clk 00:18:26]} {[%emt
00:02:20]} 21. Red1 {[%clk 00:14:47]} {[%emt 00:05:29]} Bg4 {[%clk 00:16:08]}
{[%emt 00:02:28]} 22. f3 {[%clk 00:12:52]} {[%emt 00:02:05]} Bd7 {[%clk
00:15:26]} {[%emt 00:00:52]} 23. Qc2 {[%clk 00:11:36]} {[%emt 00:01:26]} Bf5
{[%clk 00:14:31]} {[%emt 00:01:04]} 24. Qc1 {[%clk 00:10:46]} {[%emt 00:01:00]}
Rb8 {[%clk 00:11:30]} {[%emt 00:03:11]} 25. Bf4 {[%clk 00:09:37]} {[%emt
00:01:20]} Rb7 {[%clk 00:10:49]} {[%emt 00:00:52]} 26. Rd2 {[%clk 00:08:23]}
{[%emt 00:01:23]} Qd8 {[%clk 00:08:29]} {[%emt 00:02:29]} 27. Be5 {[%clk
00:08:09]} {[%emt 00:00:25]} Be6 {[%clk 00:07:44]} {[%emt 00:00:55]} 28. Re2
{[%clk 00:07:18]} {[%emt 00:01:01]} Nd7 {[%clk 00:07:25]} {[%emt 00:00:29]} 29.
Qd2 {[%clk 00:06:24]} {[%emt 00:01:03]} Nxe5 {[%clk 00:06:42]} {[%emt
00:00:53]} 30. Rxe5 {[%clk 00:06:19]} {[%emt 00:00:15]} Bf6 {[%clk 00:06:25]}
{[%emt 00:00:28]} 31. Re2 {[%clk 00:05:36]} {[%emt 00:00:53]} Qd7 {[%clk
00:05:58]} {[%emt 00:00:37]} 32. f4 {[%clk 00:05:16]} {[%emt 00:00:30]} Reb8
{[%clk 00:05:45]} {[%emt 00:00:23]} 33. Rb1 {[%clk 00:04:50]} {[%emt 00:00:36]}
a5 {[%clk 00:05:19]} {[%emt 00:00:35]} 34. Kh1 {[%clk 00:04:05]} {[%emt
00:00:55]} Bg7 {[%clk 00:05:04]} {[%emt 00:00:25]} 35. Rf2 {[%clk 00:03:23]}
{[%emt 00:00:53]} Rb4 {[%clk 00:04:57]} {[%emt 00:00:18]} 36. Nd1 {[%clk
00:02:37]} {[%emt 00:00:55]} Qa7 {[%clk 00:04:53]} {[%emt 00:00:13]} 37. Ne3
{[%clk 00:01:46]} {[%emt 00:01:02]} Qxd4 {[%clk 00:03:55]} {[%emt 00:01:08]} 38.
Nxd5 {[%clk 00:01:07]} {[%emt 00:00:48]} Rxb2 {[%clk 00:02:56]} {[%emt
00:01:09]} 39. Rxb2 {[%clk 00:00:51]} {[%emt 00:00:26]} Rxb2 {[%clk 00:03:00]}
{[%emt 00:00:06]} 40. Qxd4 {[%clk 00:00:52]} {[%emt 00:00:09]} Bxd4 {[%clk
00:03:08]} {[%emt 00:00:03]} 41. Rxb2 {[%clk 00:00:54]} {[%emt 00:00:08]} Bxb2
{[%clk 00:03:16]} {[%emt 00:00:02]} 42. Ne7+ {[%clk 00:00:46]} {[%emt
00:00:18]} Kf8 {[%clk 00:03:20]} {[%emt 00:00:05]} 43. Nc6 {[%clk 00:00:53]}
{[%emt 00:00:03]} c3 {[%clk 00:02:45]} {[%emt 00:00:46]} 44. Be4 {[%clk
00:00:58]} {[%emt 00:00:05]} Bd5 {[%clk 00:02:16]} {[%emt 00:00:39]} 45. Bxd5
{[%emt 00:00:30]} c2 {[%clk 00:02:21]} {[%emt 00:00:03]} 0-1

[Event "Kwalificatie NJK A Groningen"]
[Site "Hoogkerk, Netherlands"]
[Date "2023.02.19"]
[Round "5.6"]
[White "Jacobs, Yanick"]
[Black "Aarts, Joaquin"]
[Result "1-0"]
[TimeControl "55 min. + 10 sec./zet"]
[WhiteElo "1652"]
[BlackElo "1804"]

1. d4 {[%clk 00:45:37]} {[%emt 00:09:41]} Nf6 {[%clk 00:54:54]} {[%emt
00:00:26]} 2. Bg5 {[%clk 00:45:40]} {[%emt 00:00:07]} d5 {[%clk 00:54:59]}
{[%emt 00:00:05]} 3. Bxf6 {[%clk 00:45:36]} {[%emt 00:00:13]} gxf6 {[%clk
00:55:06]} {[%emt 00:00:04]} 4. c4 {[%clk 00:45:23]} {[%emt 00:00:22]} e5
{[%clk 00:48:11]} {[%emt 00:07:06]} 5. dxe5 {[%clk 00:43:54]} {[%emt 00:01:38]}
Bb4+ {[%clk 00:48:14]} {[%emt 00:00:08]} 6. Nc3 {[%clk 00:41:15]} {[%emt
00:02:50]} d4 {[%clk 00:47:45]} {[%emt 00:00:39]} 7. Qa4+ {[%clk 00:39:13]}
{[%emt 00:02:12]} Nc6 {[%clk 00:47:49]} {[%emt 00:00:06]} 8. O-O-O {[%clk
00:39:15]} {[%emt 00:00:07]} fxe5 {[%clk 00:47:15]} {[%emt 00:00:44]} 9. e3
{[%clk 00:38:09]} {[%emt 00:01:16]} Bd7 {[%clk 00:41:06]} {[%emt 00:06:19]} 10.
Nd5 {[%clk 00:35:19]} {[%emt 00:03:01]} Bd6 {[%clk 00:40:25]} {[%emt 00:00:51]}
11. Qc2 {[%clk 00:33:01]} {[%emt 00:02:26]} Be6 {[%clk 00:27:38]} {[%emt
00:12:57]} 12. Nf3 {[%clk 00:29:05]} {[%emt 00:04:07]} Bc5 {[%clk 00:18:25]}
{[%emt 00:09:24]} 13. Nxe5 {[%clk 00:23:04]} {[%emt 00:06:10]} Nxe5 {[%clk
00:11:21]} {[%emt 00:07:15]} 14. exd4 {[%clk 00:22:58]} {[%emt 00:00:15]} c6
{[%clk 00:07:07]} {[%emt 00:04:25]} 15. dxc5 {[%clk 00:21:07]} {[%emt
00:01:59]} cxd5 {[%clk 00:06:35]} {[%emt 00:00:43]} 16. cxd5 {[%clk 00:20:28]}
{[%emt 00:00:48]} Qg5+ {[%clk 00:05:50]} {[%emt 00:00:56]} 17. Qd2 {[%clk
00:19:50]} {[%emt 00:00:47]} Qxd2+ {[%clk 00:05:28]} {[%emt 00:00:32]} 18. Rxd2
{[%clk 00:19:53]} {[%emt 00:00:08]} Bg4 {[%clk 00:04:03]} {[%emt 00:01:36]} 19.
f3 {[%clk 00:19:44]} {[%emt 00:00:18]} Nxf3 {[%clk 00:01:52]} {[%emt 00:02:21]}
20. gxf3 {[%clk 00:19:38]} {[%emt 00:00:16]} Bxf3 {[%clk 00:02:00]} {[%emt
00:00:02]} 21. Rg1 {[%clk 00:19:37]} {[%emt 00:00:10]} O-O-O {[%clk 00:01:50]}
{[%emt 00:00:21]} 22. Bc4 {[%clk 00:18:37]} {[%emt 00:01:09]} Be4 {[%clk
00:00:57]} {[%emt 00:01:03]} 23. b3 {[%clk 00:17:53]} {[%emt 00:00:56]} Rhe8
{[%clk 00:01:01]} {[%emt 00:00:05]} 24. d6 {[%clk 00:17:05]} {[%emt 00:00:58]}
Bg6 {[%clk 00:00:48]} {[%emt 00:00:23]} 25. Rgd1 {[%clk 00:16:41]} {[%emt
00:00:33]} Re5 {[%clk 00:00:41]} {[%emt 00:00:18]} 26. Rd5 {[%clk 00:15:25]}
{[%emt 00:01:25]} Re3 {[%clk 00:00:49]} {[%emt 00:00:03]} 27. Bf1 {[%clk
00:12:56]} {[%emt 00:02:38]} Rc3+ {[%clk 00:00:47]} {[%emt 00:00:12]} 28. Kb2
{[%clk 00:11:36]} {[%emt 00:01:31]} Rc2+ {[%clk 00:00:56]} {[%emt 00:00:01]} 29.
Ka3 {[%clk 00:11:40]} {[%emt 00:00:06]} Rxh2 {[%clk 00:01:05]} {[%emt
00:00:02]} 30. Re1 {[%clk 00:11:22]} {[%emt 00:00:27]} Rh1 {[%clk 00:00:47]}
{[%emt 00:00:28]} 31. Rde5 {[%clk 00:10:51]} {[%emt 00:00:41]} Bd3 {[%clk
00:00:28]} {[%emt 00:00:30]} 32. Bxd3 {[%clk 00:10:37]} {[%emt 00:00:12]} 1-0

[Event "Kwalificatie NJK A Groningen"]
[Site "Hoogkerk, Netherlands"]
[Date "2023.02.19"]
[Round "5.7"]
[White "Van Den Berg, Leon"]
[Black "Jovanovic, Luka"]
[Result "1-0"]
[TimeControl "55 min. + 10 sec./zet"]
[WhiteElo "1766"]
[BlackElo "1593"]

1. e4 {[%clk 00:55:15]} {[%emt 00:00:03]} d5 {[%clk 00:55:04]} {[%emt
00:00:17]} 2. exd5 {[%clk 00:55:20]} {[%emt 00:00:06]} Nf6 {[%clk 00:55:11]}
{[%emt 00:00:03]} 3. g3 {[%clk 00:54:53]} {[%emt 00:00:37]} Qxd5 {[%clk
00:54:08]} {[%emt 00:01:13]} 4. Nf3 {[%clk 00:54:57]} {[%emt 00:00:06]} Bg4
{[%clk 00:54:07]} {[%emt 00:00:11]} 5. Bg2 {[%clk 00:55:02]} {[%emt 00:00:05]}
Qe4+ {[%clk 00:54:02]} {[%emt 00:00:14]} 6. Kf1 {[%clk 00:54:02]} {[%emt
00:01:11]} Nc6 {[%clk 00:53:45]} {[%emt 00:00:27]} 7. d3 {[%clk 00:53:29]}
{[%emt 00:00:43]} O-O-O {[%clk 00:51:44]} {[%emt 00:02:10]} 8. Be3 {[%clk
00:51:29]} {[%emt 00:02:10]} Qf5 {[%clk 00:46:45]} {[%emt 00:05:10]} 9. Nbd2
{[%clk 00:49:51]} {[%emt 00:01:48]} e5 {[%clk 00:46:20]} {[%emt 00:00:33]} 10.
Qe1 {[%clk 00:48:35]} {[%emt 00:01:28]} Nd4 {[%clk 00:43:23]} {[%emt 00:03:07]}
11. Bxd4 {[%clk 00:46:22]} {[%emt 00:02:23]} exd4 {[%clk 00:42:54]} {[%emt
00:00:39]} 12. h3 {[%clk 00:45:57]} {[%emt 00:00:35]} Bxf3 {[%clk 00:42:23]}
{[%emt 00:00:41]} 13. Nxf3 {[%clk 00:45:35]} {[%emt 00:00:32]} Bc5 {[%clk
00:40:50]} {[%emt 00:01:43]} 14. b4 {[%clk 00:44:35]} {[%emt 00:01:10]} Rhe8
{[%clk 00:39:31]} {[%emt 00:01:28]} 15. Qd2 {[%clk 00:44:21]} {[%emt 00:00:24]}
Bf8 {[%clk 00:38:35]} {[%emt 00:01:07]} 16. Kg1 {[%clk 00:40:51]} {[%emt
00:03:39]} h6 {[%clk 00:37:10]} {[%emt 00:01:36]} 17. Kh2 {[%clk 00:39:21]}
{[%emt 00:01:39]} g5 {[%clk 00:37:12]} {[%emt 00:00:09]} 18. Rhe1 {[%clk
00:38:34]} {[%emt 00:00:57]} Rxe1 {[%clk 00:33:51]} {[%emt 00:03:30]} 19. Rc1
{[%emt 00:00:11]} Rd1 20. Rxd1 {[%clk 00:38:33]} g4 {[%clk 00:33:47]} {[%emt
00:00:14]} 21. Re1 {[%clk 00:34:14]} Qh7 {[%clk 00:31:33]} {[%emt 00:06:54]} 22.
Re5 {[%clk 00:33:02]} Bd6 {[%clk 00:30:27]} {[%emt 00:02:37]} 23. Nh4 {[%clk
00:32:26]} Qg7 {[%clk 00:28:24]} {[%emt 00:02:56]} 24. Rb5 {[%clk 00:30:13]}
{[%emt 00:01:58]} c6 {[%clk 00:27:42]} {[%emt 00:01:21]} 25. Nf5 {[%clk
00:29:11]} {[%emt 00:01:12]} Qg6 {[%clk 00:22:57]} {[%emt 00:04:54]} 26. Nxd6+
{[%clk 00:25:43]} {[%emt 00:03:38]} Rxd6 {[%clk 00:22:52]} {[%emt 00:00:15]} 27.
Qf4 {[%clk 00:25:23]} {[%emt 00:00:30]} Nd5 {[%clk 00:13:47]} {[%emt 00:09:16]}
28. Bxd5 {[%clk 00:19:13]} {[%emt 00:06:19]} cxb5 {[%clk 00:13:39]} {[%emt
00:00:18]} 29. Bxf7 {[%clk 00:18:14]} {[%emt 00:01:09]} Qf6 {[%clk 00:13:16]}
{[%emt 00:00:34]} 30. Qxg4+ {[%clk 00:16:54]} {[%emt 00:01:30]} Kb8 {[%clk
00:13:09]} {[%emt 00:00:17]} 31. Qf4 {[%clk 00:16:30]} {[%emt 00:00:33]} Qxf4
{[%clk 00:12:58]} {[%emt 00:00:22]} 32. gxf4 {[%clk 00:16:39]} {[%emt
00:00:01]} Rf6 {[%clk 00:13:00]} {[%emt 00:00:07]} 33. Bd5 {[%clk 00:15:58]}
{[%emt 00:00:50]} Rxf4 {[%clk 00:12:59]} {[%emt 00:00:12]} 34. Kg3 {[%clk
00:16:03]} {[%emt 00:00:05]} Rf5 {[%clk 00:12:47]} {[%emt 00:00:22]} 35. Bb3
{[%clk 00:14:38]} {[%emt 00:01:35]} b6 {[%clk 00:12:44]} {[%emt 00:00:14]} 36.
f4 {[%clk 00:14:36]} {[%emt 00:00:11]} h5 {[%clk 00:12:36]} {[%emt 00:00:17]}
37. Kf3 {[%clk 00:14:17]} {[%emt 00:00:30]} a5 {[%clk 00:12:15]} {[%emt
00:00:31]} 38. Be6 {[%clk 00:13:24]} {[%emt 00:01:03]} Rf8 {[%clk 00:11:21]}
{[%emt 00:01:04]} 39. Ke4 {[%clk 00:13:08]} {[%emt 00:00:27]} Kc7 {[%clk
00:11:21]} {[%emt 00:00:10]} 40. f5 {[%clk 00:12:33]} {[%emt 00:00:45]} Kd6
{[%clk 00:09:17]} {[%emt 00:02:14]} 41. Kxd4 {[%clk 00:11:34]} {[%emt
00:01:09]} Rh8 {[%clk 00:09:04]} {[%emt 00:00:23]} 42. bxa5 {[%clk 00:10:54]}
{[%emt 00:00:50]} bxa5 {[%clk 00:09:04]} {[%emt 00:00:10]} 43. c4 {[%clk
00:10:42]} {[%emt 00:00:21]} bxc4 {[%clk 00:08:39]} {[%emt 00:00:35]} 44. dxc4
{[%clk 00:10:35]} {[%emt 00:00:17]} Rb8 {[%clk 00:08:38]} {[%emt 00:00:12]} 45.
c5+ {[%clk 00:10:40]} {[%emt 00:00:05]} Kc6 {[%clk 00:07:50]} {[%emt 00:00:57]}
46. Bd5+ {[%clk 00:10:16]} {[%emt 00:00:34]} Kd7 {[%clk 00:07:29]} {[%emt
00:00:32]} 47. Ke5 {[%clk 00:10:07]} {[%emt 00:00:18]} Rb2 {[%clk 00:07:02]}
{[%emt 00:00:37]} 48. c6+ {[%clk 00:09:30]} {[%emt 00:00:47]} Kc7 {[%clk
00:06:28]} {[%emt 00:00:45]} 49. f6 {[%clk 00:08:04]} {[%emt 00:01:35]} Re2+
{[%clk 00:06:23]} {[%emt 00:00:15]} 50. Be4 {[%clk 00:08:07]} {[%emt 00:00:07]}
Rxa2 {[%clk 00:04:47]} {[%emt 00:01:46]} 51. f7 {[%clk 00:07:45]} {[%emt
00:00:32]} Rf2 {[%clk 00:04:36]} {[%emt 00:00:21]} 52. Bf5 {[%clk 00:07:51]}
{[%emt 00:00:05]} Re2+ {[%clk 00:03:45]} {[%emt 00:01:01]} 53. Kf6 {[%clk
00:07:29]} {[%emt 00:00:32]} Kxc6 {[%clk 00:03:39]} {[%emt 00:00:16]} 54. f8=Q
{[%clk 00:06:27]} {[%emt 00:00:10]} Ra2 {[%clk 00:03:42]} {[%emt 00:01:10]} 55.
Qb8 {[%clk 00:05:30]} {[%emt 00:01:05]} a4 {[%clk 00:03:46]} {[%emt 00:00:06]}
56. Qb4 {[%clk 00:04:52]} {[%emt 00:00:48]} a3 {[%clk 00:03:40]} {[%emt
00:00:16]} 57. Qb3 {[%clk 00:04:43]} {[%emt 00:00:19]} Ra1 {[%clk 00:03:41]}
{[%emt 00:00:09]} 58. Qc3+ {[%clk 00:04:51]} {[%emt 00:00:02]} 1-0

[Event "Kwalificatie NJK A Groningen"]
[Site "Hoogkerk, Netherlands"]
[Date "2023.02.19"]
[Round "5.8"]
[White "Smid, Jelle"]
[Black "Bon, Gijs"]
[Result "0-1"]
[TimeControl "55 min. + 10 sec./zet"]
[WhiteElo "1920"]
[BlackElo "1669"]

1. d4 {[%clk 00:54:53]} {[%emt 00:00:27]} Nf6 {[%clk 00:54:53]} {[%emt
00:00:27]} 2. c4 {[%clk 00:54:57]} {[%emt 00:00:06]} e6 {[%clk 00:54:56]}
{[%emt 00:00:08]} 3. Nf3 {[%clk 00:55:01]} {[%emt 00:00:06]} d5 {[%clk
00:55:01]} {[%emt 00:00:05]} 4. Nc3 {[%clk 00:55:03]} {[%emt 00:00:08]} Be7
{[%clk 00:54:08]} {[%emt 00:01:02]} 5. Bg5 {[%clk 00:55:06]} {[%emt 00:00:08]}
O-O {[%clk 00:53:56]} {[%emt 00:00:22]} 6. e3 {[%clk 00:55:12]} {[%emt
00:00:03]} h6 {[%clk 00:53:38]} {[%emt 00:00:28]} 7. Bh4 {[%clk 00:55:15]}
{[%emt 00:00:08]} b6 {[%clk 00:52:33]} {[%emt 00:01:14]} 8. cxd5 {[%clk
00:54:26]} {[%emt 00:00:59]} Nxd5 {[%clk 00:51:28]} {[%emt 00:01:15]} 9. Bxe7
{[%clk 00:54:23]} {[%emt 00:00:14]} Nxe7 {[%clk 00:50:52]} {[%emt 00:00:47]} 10.
Bd3 {[%clk 00:52:59]} {[%emt 00:01:32]} Bb7 {[%clk 00:48:31]} {[%emt 00:02:31]}
11. g4 {[%clk 00:48:19]} {[%emt 00:04:50]} Nd7 {[%clk 00:36:17]} {[%emt
00:12:25]} 12. g5 {[%clk 00:46:23]} {[%emt 00:02:05]} h5 {[%clk 00:22:27]}
{[%emt 00:14:00]} 13. g6 {[%clk 00:41:04]} {[%emt 00:05:30]} fxg6 {[%clk
00:13:18]} {[%emt 00:09:18]} 14. e4 {[%clk 00:41:00]} {[%emt 00:00:14]} e5
{[%clk 00:09:05]} {[%emt 00:04:23]} 15. Ng5 {[%clk 00:30:08]} {[%emt 00:11:02]}
Nc6 {[%clk 00:02:45]} {[%emt 00:06:30]} 16. Qb3+ {[%clk 00:25:16]} {[%emt
00:05:02]} Kh8 {[%clk 00:02:49]} {[%emt 00:00:07]} 17. Nf7+ {[%clk 00:24:55]}
{[%emt 00:00:31]} Rxf7 {[%clk 00:02:56]} {[%emt 00:00:02]} 18. Qxf7 {[%clk
00:24:57]} {[%emt 00:00:08]} exd4 {[%clk 00:02:42]} {[%emt 00:00:25]} 19. Ne2
{[%clk 00:19:50]} {[%emt 00:05:16]} Nce5 {[%clk 00:02:23]} {[%emt 00:00:30]} 20.
Qb3 {[%clk 00:19:53]} {[%emt 00:00:07]} Nc5 {[%clk 00:02:26]} {[%emt 00:00:06]}
21. Qc2 {[%clk 00:18:58]} {[%emt 00:01:06]} Ncxd3+ {[%clk 00:02:34]} {[%emt
00:00:02]} 22. Kd2 {[%clk 00:18:52]} {[%emt 00:00:15]} Nf3+ {[%clk 00:02:09]}
{[%emt 00:00:36]} 0-1

[Event "Kwalificatie NJK A Groningen"]
[Site "Hoogkerk, Netherlands"]
[Date "2023.02.19"]
[Round "5.9"]
[White "Goudriaan, Rafael"]
[Black "Bos, Eric"]
[Result "1-0"]
[TimeControl "55 min. + 10 sec./zet"]
[WhiteElo "1882"]
[BlackElo "1596"]

1. e4 {[%clk 00:55:16]} {[%emt 00:00:03]} c5 {[%clk 00:55:18]} {[%emt
00:00:03]} 2. Nf3 {[%clk 00:55:21]} {[%emt 00:00:04]} Nc6 {[%clk 00:55:23]}
{[%emt 00:00:06]} 3. Bb5 {[%clk 00:55:23]} {[%emt 00:00:08]} e6 {[%clk
00:55:19]} {[%emt 00:00:14]} 4. O-O {[%clk 00:55:19]} {[%emt 00:00:15]} Be7
{[%clk 00:54:47]} {[%emt 00:00:41]} 5. c3 {[%clk 00:55:21]} {[%emt 00:00:07]}
d5 {[%clk 00:53:46]} {[%emt 00:01:11]} 6. exd5 {[%clk 00:55:19]} {[%emt
00:00:12]} exd5 {[%clk 00:52:10]} {[%emt 00:01:46]} 7. d4 {[%clk 00:55:21]}
{[%emt 00:00:08]} Nf6 {[%clk 00:50:23]} {[%emt 00:01:56]} 8. Re1 {[%clk
00:54:55]} {[%emt 00:00:36]} O-O {[%clk 00:49:51]} {[%emt 00:00:42]} 9. Bg5
{[%clk 00:54:13]} {[%emt 00:00:53]} cxd4 {[%clk 00:47:47]} {[%emt 00:02:14]} 10.
Nxd4 {[%clk 00:54:00]} {[%emt 00:00:22]} Nxd4 {[%clk 00:43:32]} {[%emt
00:04:26]} 11. Qxd4 {[%clk 00:53:11]} {[%emt 00:00:58]} h6 {[%clk 00:41:24]}
{[%emt 00:02:19]} 12. Bh4 {[%clk 00:52:43]} {[%emt 00:00:36]} a6 {[%clk
00:38:59]} {[%emt 00:02:37]} 13. Ba4 {[%clk 00:52:08]} {[%emt 00:00:45]} Be6
{[%clk 00:36:41]} {[%emt 00:02:28]} 14. Nd2 {[%clk 00:50:47]} {[%emt 00:01:30]}
Qc7 {[%clk 00:32:56]} {[%emt 00:03:56]} 15. Bc2 {[%clk 00:48:08]} {[%emt
00:02:48]} Rfe8 {[%clk 00:26:24]} {[%emt 00:06:42]} 16. Qd3 {[%clk 00:45:46]}
{[%emt 00:02:32]} g6 {[%clk 00:25:00]} {[%emt 00:01:33]} 17. Rxe6 {[%clk
00:45:21]} {[%emt 00:00:36]} fxe6 {[%clk 00:22:26]} {[%emt 00:02:45]} 18. Qxg6+
{[%clk 00:45:26]} {[%emt 00:00:05]} Kf8 {[%clk 00:20:06]} {[%emt 00:02:30]} 19.
Qxh6+ {[%clk 00:45:11]} {[%emt 00:00:25]} Kg8 {[%clk 00:16:07]} {[%emt
00:04:08]} 20. Qg6+ {[%clk 00:44:57]} {[%emt 00:00:24]} Kf8 {[%clk 00:15:27]}
{[%emt 00:00:50]} 21. Bxf6 {[%clk 00:44:34]} {[%emt 00:00:33]} Bxf6 {[%clk
00:15:28]} {[%emt 00:00:10]} 22. Qxf6+ {[%clk 00:44:39]} {[%emt 00:00:05]} Qf7
{[%clk 00:14:42]} {[%emt 00:00:55]} 23. Qxf7+ {[%clk 00:44:43]} {[%emt
00:00:06]} Kxf7 {[%clk 00:14:49]} {[%emt 00:00:04]} 24. f4 {[%clk 00:44:45]}
{[%emt 00:00:08]} Rac8 {[%clk 00:14:11]} {[%emt 00:00:48]} 25. Nf3 {[%clk
00:44:50]} {[%emt 00:00:05]} Rg8 {[%clk 00:12:33]} {[%emt 00:01:47]} 26. Kf2
{[%clk 00:44:49]} {[%emt 00:00:11]} Kf6 {[%clk 00:12:02]} {[%emt 00:00:42]} 27.
Re1 {[%clk 00:44:53]} {[%emt 00:00:06]} Rc6 {[%clk 00:11:10]} {[%emt 00:01:02]}
28. h3 {[%clk 00:44:50]} {[%emt 00:00:13]} Rd8 {[%clk 00:09:50]} {[%emt
00:01:29]} 29. g4 {[%clk 00:44:29]} {[%emt 00:00:32]} d4 {[%clk 00:09:39]}
{[%emt 00:00:21]} 30. Be4 {[%clk 00:44:11]} {[%emt 00:00:52]} 1-0

[Event "Kwalificatie NJK A Groningen"]
[Site "Hoogkerk, Netherlands"]
[Date "2023.02.19"]
[Round "5.10"]
[White "De Vries, Arjan"]
[Black "Van Den Berg, Mees"]
[Result "1-0"]
[TimeControl "55 min. + 10 sec./zet"]
[WhiteElo "1645"]
[BlackElo "1702"]

1. e4 {[%clk 00:55:18]} {[%emt 00:00:01]} e5 {[%clk 00:55:14]} {[%emt
00:00:06]} 2. Nf3 {[%clk 00:55:20]} {[%emt 00:00:08]} Nc6 {[%clk 00:55:18]}
{[%emt 00:00:06]} 3. Bc4 {[%clk 00:55:26]} {[%emt 00:00:05]} Bc5 {[%clk
00:55:24]} {[%emt 00:00:04]} 4. c3 {[%clk 00:55:21]} {[%emt 00:00:15]} Nf6
{[%clk 00:55:28]} {[%emt 00:00:04]} 5. d4 {[%clk 00:54:23]} {[%emt 00:01:09]}
exd4 {[%clk 00:55:33]} {[%emt 00:00:05]} 6. cxd4 {[%clk 00:54:31]} {[%emt
00:00:03]} Bb4+ {[%clk 00:55:37]} {[%emt 00:00:05]} 7. Bd2 {[%clk 00:54:39]}
{[%emt 00:00:02]} Bxd2+ {[%clk 00:54:21]} {[%emt 00:01:26]} 8. Nbxd2 {[%clk
00:54:45]} {[%emt 00:00:05]} d5 {[%clk 00:54:25]} {[%emt 00:00:06]} 9. exd5
{[%clk 00:54:43]} {[%emt 00:00:11]} Nxd5 {[%clk 00:54:29]} {[%emt 00:00:06]} 10.
O-O {[%clk 00:54:37]} {[%emt 00:00:17]} O-O {[%clk 00:54:33]} {[%emt 00:00:05]}
11. Re1 {[%clk 00:54:31]} {[%emt 00:00:16]} Nb6 {[%clk 00:52:23]} {[%emt
00:02:20]} 12. Ne5 {[%clk 00:50:38]} {[%emt 00:04:03]} Nxd4 {[%clk 00:48:01]}
{[%emt 00:04:32]} 13. Bxf7+ {[%clk 00:50:08]} {[%emt 00:00:40]} Rxf7 {[%clk
00:48:04]} {[%emt 00:00:07]} 14. Nxf7 {[%clk 00:50:15]} {[%emt 00:00:04]} Kxf7
{[%clk 00:48:03]} {[%emt 00:00:10]} 15. Qh5+ {[%clk 00:50:22]} {[%emt
00:00:03]} Kf8 {[%clk 00:46:54]} {[%emt 00:01:19]} 16. Qxh7 {[%clk 00:49:02]}
{[%emt 00:01:31]} Bf5 {[%clk 00:45:15]} {[%emt 00:01:49]} 17. Qh5 {[%clk
00:44:03]} {[%emt 00:05:08]} Qf6 {[%clk 00:41:22]} {[%emt 00:04:02]} 18. Rac1
{[%clk 00:43:30]} {[%emt 00:00:44]} c6 {[%clk 00:34:46]} {[%emt 00:06:47]} 19.
Nc4 {[%clk 00:40:41]} {[%emt 00:02:58]} Bd3 {[%clk 00:28:13]} {[%emt 00:06:43]}
20. Nxb6 {[%clk 00:39:09]} {[%emt 00:01:43]} Rd8 {[%clk 00:26:08]} {[%emt
00:02:14]} 21. Nd7+ {[%clk 00:39:01]} {[%emt 00:00:18]} 1-0